[Event "ROU-ch Women 2018"]
[Site "Olanesti"]
[Date "2018.05.14"]
[Round "1"]
[White "Cosma, Elena-Luminita"]
[Black "Bogdan, Elizaveta"]
[Result "1-0"]
[ECO "A49"]
[WhiteElo "2331"]
[BlackElo "1805"]
[Annotator "NA"]
[PlyCount "61"]
[EventDate "2018.??.??"]
[EventType "swiss"]
[EventCountry "ROU"]
[SourceTitle "playchess.com"]
[Source "ChessBase"]
[SourceQuality "1"]
[TimeControl "40/5400+30:1800+30"]

{[%evp 8,59,37,35,26,14,32767,32767,32767,9,32767,19,19,14,20,0,26,8,34,14,46,32767,32767,27,62,32767,32767,32767,32767,32767,32767,32767,32767,32767,32767,32767,32767,32767,32767,32767,32767,224,32767,32767,32767,239,245,253,308,287,303,32767,32767,284]} 1. d4 {[%emt 0:00:00]} Nf6 {[%emt 0:00:08]} 2. Nf3 {[%emt 0:00:00]} g6 {[%emt 0:00:08]} 3. g3 {[%emt 0:00:00]} Bg7 {[%emt 0:00:07]} 4. Bg2 {[%emt 0:00:00]} d6 {[%emt 0:00:21]} 5. O-O {[%emt 0:00:00]} O-O {[%emt 0:00:04]} 6. b3 {[%emt 0:00:06]} Nbd7 {[%emt 0:00:46]} 7. Bb2 {[%emt 0:00:07]} c6 {[%emt 0:01:01]} 8. Nbd2 {[%emt 0:00:23]} Qc7 {[%emt 0:01:19]} 9. e4 {[%emt 0:00:26]} e5 {[%emt 0:07:54]} 10. dxe5 {[%emt 0:00:10] A49: 1 d4 Nf6 2 Nf3 g6 3 g3: Anti-King's Indian systems} dxe5 {[%emt 0:04:36]} 11. Re1 {[%emt 0:00:14] LiveBook: 4 Games} Rd8 {[%emt 0:04:48]} 12. a4 {[%emt 0:08:11]} b6 $146 {[%emt 0:11:09]} ({Predecessor:} 12... Ne8 13. Qe2 Nf8 14. Nc4 f6 15. h4 Be6 16. Ba3 Bf7 17. h5 Ne6 {1-0 (33) Schebler,G (2499)-Georgiev,S (2022) Sunny Beach 2006}) 13. Qe2 {[%emt 0:02:02]} Bb7 {[%emt 0:05:51]} 14. Nc4 {[%emt 0:21:46]} Ne8 {[%emt 0:02:33]} 15. Rad1 {[%emt 0:02:29]} b5 {[%emt 0:05:58]} 16. Ne3 {[%emt 0:13:18]} bxa4 {[%emt 0:13:19]} 17. bxa4 {[%emt 0:00:08]} Nb6 {[%emt 0:00:20]} 18. a5 {[%emt 0:06:40]} Na4 {[%emt 0:03:18]} 19. a6 {[%emt 0:00:50]} Bxa6 {[%emt 0:12:58]} 20. Qxa6 {[%emt 0:00:12]} Nxb2 {[%emt 0:00:10]} 21. Rxd8 {[%emt 0:01:38]} Rxd8 {[%emt 0:00:28]} 22. Rb1 {[%emt 0:01:05]} Rb8 {[%emt 0:00:37]} 23. Qa2 {[%emt 0:00:16]} Nd6 {[%emt 0:04:56]} 24. Rxb2 {[%emt 0:00:58]} Rxb2 {[%emt 0:03:16]} 25. Qxb2 {[%emt 0:00:05]} Nxe4 {[%emt 0:00:05]} 26. Qb4 {[%emt 0:03:12]} Nf6 {[%emt 0:05:55]} 27. Qc4 {[%emt 0:03:35]} h6 {[%emt 0:01:48]} 28. Nd2 {[%emt 0:01:25]} c5 {[%emt 0:00:55]} 29. Ne4 {[%emt 0:03:06]} Nd7 {[%emt 0:03:49]} 30. Qd5 $18 {[%emt 0:02:57]} Bf8 {[%emt 0:01:06]} 31. Qxd7 {[%emt 0:00:27]} 1-0

[Event "ROU-ch Women 2018"]
[Site "Olanesti"]
[Date "2018.05.14"]
[Round "1"]
[White "Sandu, Mihaela"]
[Black "Florea, Dorina"]
[Result "1-0"]
[ECO "B92"]
[WhiteElo "2258"]
[BlackElo "1722"]
[Annotator "NA"]
[PlyCount "45"]
[EventDate "2018.??.??"]
[EventType "swiss"]
[EventCountry "ROU"]
[SourceTitle "playchess.com"]
[Source "ChessBase"]
[SourceQuality "1"]
[TimeControl "40/5400+30:1800+30"]

1. e4 {[%emt 0:00:00]} c5 {[%emt 0:00:07]} 2. Nf3 {[%emt 0:00:00]} d6 {[%emt 0:00:10]} 3. d4 {[%emt 0:00:00]} Nf6 {[%emt 0:00:09]} 4. Nc3 {[%emt 0:00:14]} cxd4 {[%emt 0:00:28]} 5. Nxd4 {[%emt 0:00:09]} a6 {[%emt 0:00:19]} 6. Be2 {[%emt 0:00:18]} Nc6 {[%emt 0:00:41]} 7. O-O {[%emt 0:00:30]} Bd7 {[%emt 0:00:33]} 8. Kh1 {[%emt 0:03:14]} e6 {[%emt 0:00:37]} 9. f4 {[%emt 0:02:50]} Be7 {[%emt 0:00:27]} 10. Be3 {[%emt 0:01:45]} O-O {[%emt 0:01:30]} 11. Qe1 {[%emt 0:04:02]} Nxd4 {[%emt 0:00:34]} 12. Bxd4 {[%emt 0:00:16]} Bc6 {[%emt 0:02:28]} 13. Bd3 {[%emt 0:01:05]} Qc7 {[%emt 0:01:31]} 14. Qg3 {[%emt 0:08:32]} b5 {[%emt 0:02:39] LiveBook: 10 Games} 15. e5 {[%emt 0:09:38]} dxe5 {[%emt 0:00:54]} 16. Bxe5 {[%emt 0:08:43]} Qb7 {[%emt 0:03:33]} 17. Rae1 {[%emt 0:01:08]} g6 {[%emt 0:01:02]} 18. Re2 {[%emt 0:05:39]} b4 $15 {[%emt 0:06:19]} 19. Nd1 {[%emt 0:06:22]} Ne4 {[%emt 0:03:45]} 20. Qh3 {[%emt 0:04:10]} Rfd8 21. Ne3 Nc5 {[%emt 0:06:14]} 22. f5 {[%emt 0:21:41]} Nxd3 23. fxg6 {[%emt 0:02:13]} 1-0

[Event "ROU-ch Women 2018"]
[Site "Olanesti"]
[Date "2018.05.14"]
[Round "1"]
[White "Ciolacu, Alessia-Mihaela"]
[Black "Peptan, Corina-Isabela"]
[Result "1-0"]
[ECO "A46"]
[WhiteElo "1843"]
[BlackElo "2393"]
[Annotator "ChessBase"]
[PlyCount "55"]
[EventDate "2018.??.??"]
[EventType "swiss"]
[EventCountry "ROU"]
[SourceTitle "playchess.com"]
[Source "ChessBase"]
[SourceQuality "1"]
[TimeControl "40/5400+30:1800+30"]

1. d4 {[%emt 0:00:00]} Nf6 {[%emt 0:00:05]} 2. Nf3 {[%emt 0:00:00]} e6 {[%emt 0:00:20]} 3. e3 {[%emt 0:00:05]} b6 {[%emt 0:01:18]} 4. Bd3 {[%emt 0:00:33]} Bb7 {[%emt 0:00:05]} 5. O-O {[%emt 0:00:10]} c5 {[%emt 0:00:22]} 6. c4 {[%emt 0:00:49]} Nc6 {[%emt 0:04:36]} 7. Nc3 {[%emt 0:04:04]} d5 {[%emt 0:17:43]} 8. Re1 {[%emt 0:18:06]} Be7 {[%emt 0:08:46]} 9. dxc5 {[%emt 0:17:10]} bxc5 {[%emt 0:05:34]} 10. b3 {[%emt 0:04:48]} O-O {[%emt 0:10:11]} 11. cxd5 {[%emt 0:03:39]} exd5 {[%emt 0:02:45]} 12. Bb2 {[%emt 0:03:04]} Nb4 {[%emt 0:02:06]} 13. Bf5 {[%emt 0:06:23]} Bc8 {[%emt 0:14:28]} 14. Bxc8 {[%emt 0:13:09]} Rxc8 {[%emt 0:00:02]} 15. Ne5 {[%emt 0:03:04]} d4 {[%emt 0:10:31]} 16. Nb5 {[%emt 0:01:58]} a6 {[%emt 0:05:28]} 17. Na3 {[%emt 0:03:19]} d3 {[%emt 0:02:02]} 18. e4 {[%emt 0:03:07]} Bd6 {[%emt 0:01:41]} 19. Ng4 {[%emt 0:04:43]} Be7 {[%emt 0:05:09]} 20. Ne5 {[%emt 0:00:52]} Qc7 {[%emt 0:02:36]} 21. Re3 {[%emt 0:05:07]} Rcd8 {[%emt 0:01:21]} 22. Ng4 {[%emt 0:03:04]} Qc6 {[%emt 0:02:14]} 23. Nh6+ {[%emt 0:03:38]} gxh6 {[%emt 0:00:50]} 24. Rg3+ {[%emt 0:00:23]} Kh8 {[%emt 0:00:02]} 25. Qh5 {[%emt 0:00:40]} Rg8 {[%emt 0:01:04]} 26. Qxf7 {[%emt 0:00:20]} Rd4 {[%emt 0:01:35]} 27. Qxe7 {[%emt 0:00:38]} Qxe4 {[%emt 0:00:35]} 28. Qxf6+ 1-0

[Event "ROU-ch Women 2018"]
[Site "Olanesti"]
[Date "2018.05.14"]
[Round "1"]
[White "Schiopu, Andreea-Alexandra"]
[Black "Dragomirescu, Angela"]
[Result "0-1"]
[ECO "B08"]
[WhiteElo "1765"]
[BlackElo "2272"]
[Annotator "NA"]
[PlyCount "74"]
[EventDate "2018.??.??"]
[EventType "swiss"]
[EventCountry "ROU"]
[SourceTitle "playchess.com"]
[Source "ChessBase"]
[SourceQuality "1"]
[TimeControl "40/5400+30:1800+30"]

{[%evp 9,71,27,29,32767,38,22,32,15,22,36,31,4,16,0,0,-16,0,0,4,-16,-7,-22,0,-7,32767,32767,32767,-54,-58,-67,-53,-75,32767,32767,32767,32767,32767,32767,32767,32767,32767,32767,32767,32767,32767,32767,32767,32767,32767,32767,32767,32767,32767,32767,32767,32767,32767,-221,32767,-187,-187,-280,-350,-377]} 1. d4 {[%emt 0:00:00]} d6 {[%emt 0:00:11]} 2. e4 {[%emt 0:00:08]} Nf6 {[%emt 0:00:06]} 3. Nc3 {[%emt 0:00:41]} g6 {[%emt 0:00:42]} 4. Nf3 {[%emt 0:00:32]} Bg7 {[%emt 0:00:04]} 5. Bd3 {[%emt 0:00:49]} O-O {[%emt 0:00:55]} 6. O-O {[%emt 0:00:21]} c6 {[%emt 0:06:08]} 7. h3 {[%emt 0:03:40]} Nbd7 {[%emt 0:02:29]} 8. Be3 {[%emt 0:00:58]} Qc7 {[%emt 0:01:54]} 9. Qd2 {[%emt 0:01:40]} b5 {[%emt 0:03:50]} 10. Bh6 {[%emt 0:03:20] B07: Pirc Defence: Miscellaneous Systems} (10. Ne2 e5 11. dxe5 Nxe5 12. Nxe5 dxe5 13. a4 Be6 14. axb5 cxb5 15. Qa5 Rfc8 16. Qxc7 Rxc7 17. Nc3 Bc4 {½-½ (92) Saric,I (2666)-Van Wely,L (2667) Wijk aan Zee 2015}) 10... Bb7 {[%emt 0:01:17]} 11. Bxg7 {[%emt 0:01:20]} Kxg7 {[%emt 0:00:29]} 12. Rfe1 {[%emt 0:00:49]} e5 {[%emt 0:04:20]} 13. dxe5 {[%emt 0:01:55]} dxe5 {[%emt 0:00:24] LiveBook: 3 Games} 14. Rad1 {[%emt 0:02:28]} Nc5 {[%emt 0:03:59]} 15. Qg5 $146 {[%emt 0:03:52]} ({Predecessor:} 15. a3 Ne6 {0-1 (59) Matras,A (2246)-Warakomski,T (2396) Warsaw 2005}) 15... Nfd7 {[%emt 0:05:23]} 16. Bf1 {[%emt 0:04:01]} f6 {[%emt 0:04:49]} 17. Qg4 {[%emt 0:01:44]} Nb6 {[%emt 0:00:13]} 18. b4 {[%emt 0:03:21]} Bc8 $1 {[%emt 0:06:53]} 19. Qg3 {[%emt 0:00:57]} Ne6 {[%emt 0:00:54]} 20. Nh4 {[%emt 0:04:48]} Nf4 {[%emt 0:10:53]} 21. Rd2 {[%emt 0:03:30]} Be6 {[%emt 0:01:55]} 22. Qe3 {[%emt 0:01:23]} Rad8 {[%emt 0:08:34]} 23. Red1 {[%emt 0:01:15]} Rxd2 {[%emt 0:00:32]} 24. Qxd2 {[%emt 0:00:14]} Bf7 {[%emt 0:01:03]} 25. Qd6 {[%emt 0:06:07]} Qxd6 {[%emt 0:00:50]} 26. Rxd6 {[%emt 0:00:10]} Rc8 {[%emt 0:00:13]} 27. Nf3 {[%emt 0:00:44]} Ne6 {[%emt 0:02:44]} 28. g4 {[%emt 0:01:33]} Kf8 {[%emt 0:00:35]} 29. Rd1 {[%emt 0:03:13]} Ke7 {[%emt 0:09:27]} 30. a4 {[%emt 0:01:47]} a6 {[%emt 0:00:05]} 31. a5 {[%emt 0:00:38]} Nd7 {[%emt 0:01:22]} 32. Ne2 {[%emt 0:00:33]} c5 {[%emt 0:00:56]} 33. c3 {[%emt 0:01:35]} cxb4 {[%emt 0:03:03]} 34. cxb4 {[%emt 0:00:27]} Rc4 {[%emt 0:04:12]} 35. Rc1 {[%emt 0:02:38]} (35. Rb1 $142) 35... Rxb4 {[%emt 0:04:27]} 36. Rc6 $19 {[%emt 0:00:19]} Nec5 {[%emt 0:01:20]} 37. Nc3 {[%emt 0:01:04]} Rb3 {[%emt 0:00:53]} 0-1

[Event "ROU-ch Women 2018"]
[Site "Olanesti"]
[Date "2018.05.14"]
[Round "1"]
[White "Paraschiv, Petronela-Alexandra"]
[Black "Sgircea, Silvia-Raluca"]
[Result "0-1"]
[ECO "A36"]
[WhiteElo "1720"]
[BlackElo "2198"]
[Annotator "NA"]
[PlyCount "82"]
[EventDate "2018.??.??"]
[EventType "swiss"]
[EventCountry "ROU"]
[SourceTitle "playchess.com"]
[Source "ChessBase"]
[SourceQuality "1"]
[TimeControl "40/5400+30:1800+30"]

{[%evp 8,71,16,32767,32767,32767,14,15,6,-2,-4,0,32767,-6,-4,-4,14,0,-3,-11,0,-17,-9,32767,32767,32767,-52,32767,32767,32767,32767,32767,32767,32767,32767,32767,32767,32767,32767,32767,-121,-112,32767,-124,-93,-115,-136,-148,-108,-158,-150,32767,32767,32767,-179,32767,32767,32767,-376,-364,-402,-467,-402,-362,-468,-468]} 1. c4 {[%emt 0:00:00]} c5 {[%emt 0:00:09]} 2. Nc3 {[%emt 0:00:00]} g6 {[%emt 0:00:14]} 3. g3 {[%emt 0:00:00]} Bg7 {[%emt 0:00:07]} 4. Bg2 {[%emt 0:00:08]} Nc6 {[%emt 0:00:15]} 5. d3 {[%emt 0:00:33]} d6 {[%emt 0:00:07]} 6. e4 {[%emt 0:00:30]} e6 {[%emt 0:03:42]} 7. Nge2 {[%emt 0:00:35]} Nge7 {[%emt 0:00:20]} 8. O-O {[%emt 0:01:29]} O-O {[%emt 0:00:10]} 9. Be3 {[%emt 0:01:02]} Nd4 {[%emt 0:01:54]} 10. Qd2 {[%emt 0:03:00]} Rb8 {[%emt 0:03:24]} 11. Bh6 {[%emt 0:07:15]} a6 {[%emt 0:05:19] LiveBook: 6 Games} 12. Nxd4 {[%emt 0:03:52]} cxd4 {[%emt 0:01:03]} 13. Bxg7 {[%emt 0:08:24]} Kxg7 {[%emt 0:00:08]} 14. Ne2 {[%emt 0:00:05] A36: Symmetrical English vs ...g6: 4 Bg2 Bg7} e5 {[%emt 0:15:07]} 15. h3 {[%emt 0:04:11]} (15. f4 f5 16. Rae1 Be6 17. b3 Qd7 18. Kh1 b5 19. c5 dxc5 20. fxe5 fxe4 21. Bxe4 Nf5 {1-0 (40) Zwettler,M (2206)-Poetz,F (2427) Feistritz an der Drau 2014}) 15... b5 {[%emt 0:01:50]} 16. b3 {[%emt 0:00:19]} Qb6 $146 {[%emt 0:01:55]} ({Predecessor:} 16... f5 17. Kh2 Qd7 18. f3 Qe6 19. Rae1 fxe4 20. fxe4 Bd7 21. Ng1 h6 {½-½ (34) Kachko,A (2135)-Demidov,M (2165) Russia 2004}) 17. Rfc1 {[%emt 0:15:09]} Bd7 {[%emt 0:02:33]} 18. f4 {[%emt 0:09:35]} Rfc8 {[%emt 0:15:33]} 19. Kf1 {[%emt 0:01:35]} a5 {[%emt 0:05:30]} 20. g4 {[%emt 0:03:53]} bxc4 {[%emt 0:03:05]} 21. bxc4 {[%emt 0:02:18]} a4 {[%emt 0:05:54]} 22. a3 {[%emt 0:01:31]} Qc5 {[%emt 0:01:15]} 23. Rc2 {[%emt 0:04:59]} Rb3 {[%emt 0:03:45]} 24. Rca2 {[%emt 0:01:27]} Rcb8 {[%emt 0:01:40]} 25. Nc1 {[%emt 0:03:55]} R3b6 {[%emt 0:01:07]} 26. f5 {[%emt 0:01:14]} Nc6 {[%emt 0:07:51]} 27. Bf3 {[%emt 0:02:24]} Qa5 {[%emt 0:06:09]} 28. Qxa5 {[%emt 0:04:40]} Nxa5 {[%emt 0:00:01]} 29. Ke1 {[%emt 0:02:05]} Kf6 {[%emt 0:02:58]} 30. h4 {[%emt 0:00:42]} gxf5 {[%emt 0:01:00]} 31. gxf5 {[%emt 0:00:20]} Rb1 {[%emt 0:02:19]} 32. Kd2 {[%emt 0:03:09]} R8b2+ {[%emt 0:02:17]} 33. Rxb2 {[%emt 0:01:26]} Rxb2+ {[%emt 0:00:01]} 34. Ke1 {[%emt 0:00:46]} Nb3 {[%emt 0:00:37]} 35. Nxb3 $19 {[%emt 0:00:31]} axb3 {[%emt 0:00:06]} ({Not} 35... Rxb3 36. Kd2 $11) 36. Bd1 {[%emt 0:01:20]} Ba4 {[%emt 0:00:13]} 37. Rc1 {[%emt 0:00:45]} Ra2 {[%emt 0:02:23]} 38. Rb1 {[%emt 0:00:14]} Rxa3 {[%emt 0:00:07]} 39. Kd2 {[%emt 0:01:51]} Ra2+ {[%emt 0:00:21]} 40. Kc1 {[%emt 0:00:00]} Rh2 {[%emt 0:00:16]} 41. h5 {[%emt 0:03:40]} b2+ {[%emt 0:00:27]} 0-1

[Event "ROU-ch Women 2018"]
[Site "Olanesti"]
[Date "2018.05.16"]
[Round "3"]
[White "Peptan, Corina-Isabela"]
[Black "Pancu, Aureliana-Eugenia"]
[Result "1-0"]
[ECO "A15"]
[WhiteElo "2393"]
[BlackElo "1852"]
[Annotator "NA"]
[PlyCount "91"]
[EventDate "2018.??.??"]
[EventType "swiss"]
[EventCountry "ROU"]
[SourceTitle "playchess.com"]
[Source "ChessBase"]
[SourceQuality "1"]
[TimeControl "40/5400+30:1800+30"]

1. c4 {[%emt 0:00:00]} Nf6 {[%emt 0:00:22]} 2. Nf3 {[%emt 0:00:00]} g6 {[%emt 0:00:42]} 3. Nc3 {[%emt 0:00:00]} d5 {[%emt 0:00:15]} 4. cxd5 {[%emt 0:00:02]} Nxd5 {[%emt 0:00:07]} 5. h4 {[%emt 0:00:07]} Nxc3 {[%emt 0:12:35] A16: English Opening: 1...Nf6 with ...d5} (5... Bg7 6. h5 Nc6 7. h6 Bf6 8. Ne4 Bg4 9. e3 O-O 10. Nxf6+ exf6 11. Be2 Re8 12. O-O Qe7 13. d4 {0-1 (22) Akobian,V (2647)-Duda,J (2717) Riadh 2017}) 6. bxc3 {[%emt 0:00:18]} h6 {[%emt 0:01:11]} 7. g3 {[%emt 0:06:28]} Bg7 {[%emt 0:00:44]} 8. Bg2 {[%emt 0:00:08] LiveBook: 11 Games} c5 {[%emt 0:04:39]} 9. Qb3 $146 {[%emt 0:01:29]} ({Predecessor:} 9. O-O Nc6 10. Rb1 O-O 11. d3 Qc7 12. Be3 b6 13. Bf4 Qd7 14. d4 Ba6 15. dxc5 Qxd1 16. Rfxd1 bxc5 {1-0 (37) Iordachescu,V (2601)-Guido,F (2413) Condino 2014}) 9... Qc7 {[%emt 0:01:09]} 10. Rb1 {[%emt 0:02:34]} O-O {[%emt 0:01:01]} 11. Ba3 {[%emt 0:09:49]} Na6 {[%emt 0:06:21]} 12. O-O {[%emt 0:04:24]} Rb8 {[%emt 0:00:41]} 13. c4 {[%emt 0:06:02]} Be6 {[%emt 0:05:26]} 14. Bb2 {[%emt 0:04:39]} Bxb2 {[%emt 0:13:47]} 15. Rxb2 {[%emt 0:00:07]} Qd6 {[%emt 0:00:28]} 16. Qc3 {[%emt 0:10:24]} Nc7 {[%emt 0:09:04]} 17. Rc1 {[%emt 0:04:18]} f6 {[%emt 0:02:13]} 18. Qa5 {[%emt 0:05:31]} Na6 {[%emt 0:01:37]} 19. a3 {[%emt 0:01:00]} Kg7 {[%emt 0:00:30]} 20. d3 {[%emt 0:00:21]} Bc8 {[%emt 0:01:10]} 21. Qc3 {[%emt 0:11:21]} b6 {[%emt 0:02:36]} 22. d4 {[%emt 0:01:08]} cxd4 {[%emt 0:03:10]} 23. Nxd4 {[%emt 0:00:12]} Bd7 {[%emt 0:02:47]} 24. Nb5 {[%emt 0:02:30]} Bxb5 $1 {[%emt 0:00:29]} 25. cxb5 {[%emt 0:00:33]} Nc5 {[%emt 0:00:14]} 26. Rd2 {[%emt 0:00:59]} Qc7 {[%emt 0:00:44]} 27. h5 {[%emt 0:03:31]} Rbd8 {[%emt 0:02:25]} 28. hxg6 {[%emt 0:01:45]} Rxd2 {[%emt 0:00:40]} 29. Qxd2 {[%emt 0:00:02]} Rd8 {[%emt 0:02:06]} 30. Qc2 {[%emt 0:03:13]} e5 {[%emt 0:03:08]} 31. Bh3 {[%emt 0:04:59]} Rd4 {[%emt 0:01:40]} 32. e3 {[%emt 0:02:26]} Rd6 {[%emt 0:01:27]} 33. Bf5 {[%emt 0:04:18]} Qe7 {[%emt 0:00:42]} 34. Rd1 {[%emt 0:01:09]} Qd8 {[%emt 0:05:35]} 35. Rxd6 {[%emt 0:00:22]} Qxd6 {[%emt 0:00:03]} 36. Qc4 {[%emt 0:00:20]} Qe7 {[%emt 0:01:05]} 37. e4 {[%emt 0:01:52]} Nb7 {[%emt 0:01:33]} 38. Qd5 {[%emt 0:00:20]} Nd6 {[%emt 0:01:14]} 39. Kg2 {[%emt 0:02:23]} Nb7 {[%emt 0:01:19]} 40. Kh3 {[%emt 0:00:00]} Nd6 {[%emt 0:07:24]} 41. Kg4 {[%emt 0:03:45]} Qc7 {[%emt 0:01:19]} 42. a4 {[%emt 0:09:42]} Qc5 {[%emt 0:02:24]} (42... Qe7 $142 43. Kh5 Qc7) 43. Qe6 {[%emt 0:05:19]} Qc7 {[%emt 0:00:16]} 44. Kh5 {[%emt 0:00:41]} Nxf5 {[%emt 0:10:45]} 45. exf5 {[%emt 0:01:06]} Qb7 $18 {[%emt 0:00:27]} 46. Qf7+ {[%emt 0:02:44]} 1-0

[Event "ROU-ch Women 2018"]
[Site "Olanesti"]
[Date "2018.05.16"]
[Round "3"]
[White "Cosma, Elena-Luminita"]
[Black "Sgircea, Silvia-Raluca"]
[Result "1/2-1/2"]
[ECO "A48"]
[WhiteElo "2331"]
[BlackElo "2198"]
[Annotator "NA"]
[PlyCount "27"]
[EventDate "2018.??.??"]
[EventType "swiss"]
[EventCountry "ROU"]
[SourceTitle "playchess.com"]
[Source "ChessBase"]
[SourceQuality "1"]
[TimeControl "40/5400+30:1800+30"]

{[%evp 8,23,4,3,32767,32767,32767,32767,32767,32767,32767,-12,0,-6,0,0,0,-26]} 1. d4 {[%emt 0:00:20]} Nf6 {[%emt 0:00:16]} 2. Nf3 {[%emt 0:00:26]} g6 {[%emt 0:00:06]} 3. Bf4 {[%emt 0:03:28]} Bg7 {[%emt 0:00:17]} 4. e3 {[%emt 0:00:08]} O-O {[%emt 0:00:35]} 5. h3 {[%emt 0:00:05]} d6 {[%emt 0:00:19]} 6. Be2 {[%emt 0:01:17]} b6 {[%emt 0:00:34]} 7. O-O {[%emt 0:00:23]} Bb7 {[%emt 0:00:06]} 8. c4 {[%emt 0:01:05]} Nbd7 {[%emt 0:00:52]} 9. Bh2 {[%emt 0:01:07]} Re8 {[%emt 0:02:53]} 10. Nc3 {[%emt 0:07:10] LiveBook: 27 Games} Ne4 {[%emt 0:04:10]} 11. Nxe4 {[%emt 0:25:55]} Bxe4 {[%emt 0:00:06]} 12. Qd2 $11 {[%emt 0:00:09]} e5 {[%emt 0:35:56]} 13. Rad1 {[%emt 0:05:18]} Bb7 {[%emt 0:04:03]} 14. dxe5 {[%emt 0:12:07]} 1/2-1/2

[Event "ROU-ch Women 2018"]
[Site "Olanesti"]
[Date "2018.05.16"]
[Round "3"]
[White "Sandu, Mihaela"]
[Black "Lehaci, Miruna-Daria"]
[Result "1-0"]
[ECO "B92"]
[WhiteElo "2258"]
[BlackElo "1905"]
[Annotator "NA"]
[PlyCount "127"]
[EventDate "2018.??.??"]
[EventType "swiss"]
[EventCountry "ROU"]
[SourceTitle "playchess.com"]
[Source "ChessBase"]
[SourceQuality "1"]
[TimeControl "40/5400+30:1800+30"]

1. e4 {[%emt 0:00:00]} c5 {[%emt 0:00:03]} 2. Nf3 {[%emt 0:00:00]} d6 {[%emt 0:00:03]} 3. d4 {[%emt 0:00:00]} cxd4 {[%emt 0:00:03]} 4. Nxd4 {[%emt 0:00:00]} Nf6 {[%emt 0:00:05]} 5. Nc3 {[%emt 0:00:00]} a6 {[%emt 0:00:02]} 6. Be2 {[%emt 0:00:00]} e5 {[%emt 0:00:03]} 7. Nb3 {[%emt 0:01:38]} Be7 {[%emt 0:00:05]} 8. O-O {[%emt 0:00:38]} O-O {[%emt 0:00:04]} 9. Be3 {[%emt 0:01:25]} Be6 {[%emt 0:00:07]} 10. Qd2 {[%emt 0:00:28]} Nbd7 {[%emt 0:00:04]} 11. a4 {[%emt 0:00:16]} Rc8 {[%emt 0:00:04]} 12. a5 {[%emt 0:03:34]} Qc7 {[%emt 0:01:18]} 13. Rfd1 {[%emt 0:05:40]} Rfe8 {[%emt 0:00:11]} 14. f3 {[%emt 0:08:08] B92: Sicilian Najdorf: 6 Be2} h6 {[%emt 0:00:54] LiveBook: 18 Games} 15. Nc1 {[%emt 0:10:26]} (15. Rdc1 Qc6 16. Rd1 {½-½ (20) Sjugirov,S (2674)-Nepomniachtchi,I (2703) Sochi 2016}) 15... Bf8 {[%emt 0:01:21]} 16. Bf1 {[%emt 0:00:16]} Red8 {[%emt 0:11:01]} 17. Qf2 {[%emt 0:06:32]} Qc6 {[%emt 0:03:15]} 18. Qd2 {[%emt 0:06:33]} Nc5 {[%emt 0:12:52]} 19. N1a2 $146 {[%emt 0:10:51]} ({Predecessor:} 19. Nd5 Bxd5 20. exd5 Qe8 21. c4 Qe7 {1-0 (42) Ressler,V (2281)-Officier,T ICCF email 2010}) 19... Qc7 {[%emt 0:22:30]} 20. Nb4 {[%emt 0:02:02]} Be7 {[%emt 0:05:33]} 21. Nbd5 {[%emt 0:03:14]} Nxd5 {[%emt 0:00:23]} 22. Nxd5 {[%emt 0:00:18]} Bxd5 {[%emt 0:00:04]} 23. exd5 {[%emt 0:07:45]} Rf8 {[%emt 0:08:22]} 24. b4 {[%emt 0:00:37]} Nd7 {[%emt 0:00:04]} 25. c4 {[%emt 0:00:05]} Qd8 {[%emt 0:03:21]} 26. Rac1 {[%emt 0:07:05]} f5 {[%emt 0:01:35]} (26... Bg5 $14) 27. c5 {[%emt 0:00:50]} dxc5 {[%emt 0:16:22]} 28. d6 {[%emt 0:01:32]} Bg5 {[%emt 0:00:12]} 29. bxc5 {[%emt 0:04:02]} Bxe3+ {[%emt 0:00:16]} 30. Qxe3 {[%emt 0:00:05]} Qxa5 {[%emt 0:01:14]} 31. Qb3+ {[%emt 0:07:20]} Kh8 {[%emt 0:00:05]} 32. Qxb7 {[%emt 0:00:04]} Nxc5 {[%emt 0:00:54]} 33. Qa7 {[%emt 0:01:18]} Ne6 {[%emt 0:05:22]} 34. d7 {[%emt 0:08:45]} Ra8 {[%emt 0:01:02]} 35. Qb7 $18 {[%emt 0:00:58]} Rab8 {[%emt 0:00:40]} 36. Qxa6 {[%emt 0:01:25]} Qxa6 {[%emt 0:01:07]} 37. Bxa6 {[%emt 0:00:05]} Rbd8 {[%emt 0:00:50]} 38. Rd6 {[%emt 0:01:13]} Nf4 {[%emt 0:02:46]} 39. Rc8 {[%emt 0:00:58]} Nh5 {[%emt 0:00:22]} 40. Rc5 {[%emt 0:00:00]} Nf6 {[%emt 0:01:23]} 41. Bb5 {[%emt 0:10:46]} e4 {[%emt 0:06:10]} 42. Rxf5 {[%emt 0:00:54]} exf3 {[%emt 0:05:35]} 43. Rxf3 {[%emt 0:00:04]} Kh7 {[%emt 0:00:58]} 44. h3 {[%emt 0:07:01]} Rb8 {[%emt 0:03:11]} 45. Bc6 {[%emt 0:00:48]} Rfd8 {[%emt 0:00:59]} 46. Re3 {[%emt 0:02:11]} Kh8 {[%emt 0:05:36]} 47. Re7 {[%emt 0:00:26]} Kg8 {[%emt 0:10:47]} 48. Rde6 {[%emt 0:00:14]} Kf8 {[%emt 0:00:04]} 49. Re2 {[%emt 0:00:25]} h5 {[%emt 0:02:03]} 50. g3 {[%emt 0:00:14]} Rb1+ {[%emt 0:00:22]} 51. Kg2 {[%emt 0:00:15]} Rbb8 {[%emt 0:01:44]} 52. Kf2 {[%emt 0:00:25]} Nxd7 {[%emt 0:01:50]} 53. Rxd7 {[%emt 0:01:14]} Rxd7 {[%emt 0:00:23]} 54. Bxd7 {[%emt 0:00:06]} Rb4 {[%emt 0:00:05]} 55. h4 {[%emt 0:01:05]} Rd4 {[%emt 0:00:06]} 56. Be8 {[%emt 0:00:17]} Rd5 {[%emt 0:00:05]} 57. Bg6 {[%emt 0:00:06]} Rd8 {[%emt 0:00:27]} 58. Bxh5 {[%emt 0:00:09]} g5 {[%emt 0:00:16]} 59. hxg5 {[%emt 0:00:38]} Rd5 {[%emt 0:00:09]} 60. Bf3 {[%emt 0:00:56]} Rxg5 {[%emt 0:00:07]} 61. g4 {[%emt 0:00:05]} Kg7 {[%emt 0:00:09]} 62. Kg3 {[%emt 0:00:04]} Ra5 {[%emt 0:00:22]} 63. Kf4 {[%emt 0:01:27]} Kf6 {[%emt 0:01:14]} 64. Rb2 {[%emt 0:00:10]} 1-0